fUSD/lending_fUSD_20240613
["ID","MTS","AMOUNT","RATE_DAILY","PERIOD"]
[329339683,1718258262769,-500.0,0.00031909,30]
[329339684,1718258262814,-503.01,0.00031909,30]
[329339685,1718258262865,-500.0,0.00031909,30]
[329339686,1718258262901,-193.87800919,0.00031909,30]
[329339687,1718258262945,-500.0,0.00031909,30]
[329339688,1718258263004,-503.01,0.00031909,30]
[329339689,1718258263051,-500.0,0.00031909,30]
[329339690,1718258263106,-503.01,0.00031909,30]
[329339691,1718258263163,-500.0,0.00031909,30]
[329339692,1718258263204,-500.0,0.00031909,30]
[329339693,1718258263243,-503.01,0.00031909,30]
[329339694,1718258263303,-500.0,0.00031909,30]
[329339695,1718258263356,-500.0,0.00031909,30]
[329339696,1718258263420,-503.01,0.00031909,30]
[329339697,1718258263491,-500.0,0.00031909,30]
[329339698,1718258263637,-503.01,0.00031909,30]
[329339699,1718258263675,-500.0,0.00031909,30]
[329339700,1718258263715,-500.0,0.00031909,30]
[329339701,1718258263772,-503.01,0.00031909,30]
[329339702,1718258263810,-500.0,0.00031909,30]
[329339703,1718258263873,-503.01,0.00031909,30]
[329339704,1718258263915,-500.0,0.00031909,30]
[329339705,1718258263956,-493.28396995,0.00031909,30]
[329339706,1718258264003,-503.01,0.00031909,30]
[329339707,1718258264045,-503.13457589,0.00031909,30]
[329339708,1718258264088,-466.02,0.00031909,30]
[329339709,1718258264123,-552.33245874,0.00031909,30]
[329339710,1718258264164,-500.0,0.00031909,30]
[329339711,1718258264237,-505.30891283,0.00031909,30]
[329339712,1718258264325,-500.0,0.00031909,30]
[329339713,1718258264382,-500.0,0.00031909,30]
[329339714,1718258264448,-500.0,0.00031909,30]
[329339715,1718258264539,-500.0,0.00031909,30]
[329339716,1718258264597,-500.0,0.00031909,30]
[329339717,1718258264643,-510.43577233,0.00031909,30]
[329339718,1718258264720,-500.0,0.00031909,30]
[329339719,1718258264783,-500.0,0.00031909,30]
[329339720,1718258264819,-278.82646821,0.00031909,30]
[329339721,1718258264859,-500.0,0.00031909,30]
[329339722,1718258264900,-500.0,0.00031909,30]
[329339723,1718258264951,-500.0,0.00031909,30]
[329339724,1718258265016,-444.66838777,0.00031909,30]
[329339725,1718258265096,-500.0,0.00031909,30]
[329339726,1718258265171,-303.40547349,0.00031909,30]
[329339727,1718258265238,-500.0,0.00031909,30]
[329339728,1718258265296,-595.79739388,0.00031909,30]
[329339729,1718258265345,-508.92888988,0.00031909,30]
[329339730,1718258265386,-500.0,0.00031909,30]
[329339731,1718258265430,-500.0,0.00031909,30]
[329339732,1718258265490,-530.90145282,0.00031909,30]
[329339733,1718258265531,-431.42992603,0.00031909,30]
[329339734,1718258265579,-508.73370205,0.00031909,30]
[329339735,1718258265631,-508.54331586,0.00031909,30]
[329339736,1718258265693,-500.0,0.00031909,30]
[329339737,1718258265739,-504.14624031,0.00031909,30]
[329339738,1718258265806,-485.30408555,0.00031909,30]
[329339739,1718258265846,-504.46879563,0.00031909,30]
[329339740,1718258265888,-500.0,0.00031909,30]
[329339741,1718258265933,-500.0,0.00031909,30]
[329339742,1718258265975,-500.0,0.00031909,30]
[329339743,1718258266032,-500.0,0.00031909,30]
[329339744,1718258266082,-500.0,0.00031909,30]
[329339745,1718258266121,-500.0,0.00031909,30]
[329339746,1718258266161,-524.26068272,0.00031909,30]
[329339747,1718258266203,-500.0,0.00031909,30]
[329339748,1718258266267,-500.0,0.00031909,30]
[329339749,1718258266358,-500.0,0.00031909,30]
[329339750,1718258266509,-500.0,0.00031909,30]
[329339751,1718258266558,-500.0,0.00031909,30]
[329339752,1718258266608,-501.86745144,0.00031909,30]
[329339753,1718258266653,-500.0,0.00031909,30]
[329339754,1718258266701,-158.6061096,0.00031909,30]
[329339755,1718258266770,-500.0,0.00031909,30]
[329339756,1718258266823,-512.48386461,0.00031909,30]
[329339757,1718258266867,-500.0,0.00031909,30]
[329339758,1718258266918,-323.46556626,0.00031909,30]
[329339759,1718258266961,-500.0,0.00031909,30]
[329339760,1718258267004,-500.0,0.00031909,30]
[329339761,1718258267046,-500.0,0.00031909,30]
[329339762,1718258267089,-500.0,0.00031909,30]
[329339763,1718258267135,-500.0,0.00031909,30]
[329339764,1718258267181,-500.0,0.00031909,30]
[329339765,1718258267218,-200.9986174,0.00031909,30]
[329339766,1718258267270,-521.85035826,0.00031909,30]
[329339767,1718258267395,-414.08718254,0.00031909,30]
[329339768,1718258267443,-504.84001758,0.00031909,30]
[329339769,1718258267518,-500.0,0.00031909,30]
[329339770,1718258267565,-500.0,0.00031909,30]
[329339771,1718258267612,-509.87753749,0.00031909,30]
[329339772,1718258267654,-522.71726844,0.00031909,30]
[329339773,1718258267697,-501.09620519,0.00031909,30]
[329339774,1718258267731,-517.31289123,0.00031909,30]
[329339775,1718258267817,-506.21259067,0.00031909,30]
[329339776,1718258267889,-500.0,0.00031909,30]
[329339777,1718258267982,-504.55584354,0.00031909,30]
[329339778,1718258268047,-500.0,0.00031909,30]
[329339779,1718258268153,-500.0,0.00031909,30]
[329339780,1718258268218,-500.0,0.00031909,30]
[329339781,1718258268292,-500.0,0.00031909,30]
[329339782,1718258268369,-500.0,0.00031909,30]
[329339783,1718258268458,-601.44598546,0.00031909,30]
[329339784,1718258268535,-500.0,0.00031909,30]
[329339785,1718258268594,-500.0,0.00031909,30]
[329339786,1718258268666,-514.86679066,0.00031909,30]
[329339787,1718258268730,-500.0,0.00031909,30]
[329339788,1718258268840,-500.0,0.00031909,30]
[329339789,1718258268903,-500.0,0.00031909,30]
[329339790,1718258268978,-272.86824311,0.00031909,30]
[329339791,1718258269036,-500.0,0.00031909,30]
[329339792,1718258269086,-529.54074754,0.00031909,30]
[329339793,1718258269138,-507.265215,0.00031909,30]
[329339794,1718258269186,-520.99567881,0.00031909,30]
[329339795,1718258269250,-500.0,0.00031909,30]
[329339796,1718258269310,-501.92125196,0.00031909,30]
[329339797,1718258269372,-500.0,0.00031909,30]
[329339798,1718258269425,-195.84068679,0.00031909,30]
[329339799,1718258269490,-500.0,0.00031909,30]
[329339800,1718258269677,-500.0,0.00031909,30]
[329339801,1718258269726,-500.0,0.00031909,30]
[329339802,1718258269772,-500.0,0.00031909,30]
[329339803,1718258269821,-443.01813641,0.00031909,30]
[329339804,1718258269862,-516.04880947,0.00031909,30]
[329339805,1718258269899,-502.58657997,0.00031909,30]
[329339806,1718258269935,-504.19043026,0.00031909,30]
[329339807,1718258269973,-500.0,0.00031909,30]
[329339808,1718258270010,-500.0,0.00031909,30]
[329339809,1718258270048,-507.64655602,0.00031909,30]
[329339810,1718258270084,-500.0,0.00031909,30]
[329339811,1718258270120,-500.0,0.00031909,30]
[329339812,1718258270152,-500.0,0.00031909,30]
[329339813,1718258270189,-531.10230649,0.00031909,30]
[329339814,1718258270229,-500.0,0.00031909,30]
[329339815,1718258270285,-500.0,0.00031909,30]
[329339816,1718258270327,-502.60511258,0.00031909,30]
[329339817,1718258270378,-500.0,0.00031909,30]
[329339818,1718258270422,-496.75865701,0.00031909,30]
[329339819,1718258270459,-500.0,0.00031909,30]
[329339820,1718258270506,-506.90954309,0.00031909,30]
[329339821,1718258270544,-500.0,0.00031909,30]
[329339822,1718258270613,-491.08210429,0.00031909,30]
[329339823,1718258270661,-500.0,0.00031909,30]
[329339824,1718258270705,-502.74990672,0.00031909,30]
[329339825,1718258270743,-280.25989565,0.00031909,30]
[329339826,1718258270790,-500.0,0.00031909,30]
[329339827,1718258270852,-500.0,0.00031909,30]
[329339828,1718258270889,-225.61230046,0.00031909,30]
[329339829,1718258270923,-500.0,0.00031909,30]
[329339830,1718258270961,-500.0,0.00031909,30]
[329339831,1718258271004,-500.0,0.00031909,30]
[329339832,1718258271046,-500.0,0.00031909,30]
[329339833,1718258271083,-509.15428317,0.00031909,30]
[329339834,1718258271122,-500.0,0.00031909,30]
[329339835,1718258271160,-500.0,0.00031909,30]
[329339836,1718258271223,-500.0,0.00031909,30]
[329339837,1718258271260,-500.0,0.00031909,30]
[329339838,1718258271308,-500.0,0.00031909,30]
[329339839,1718258271362,-500.0,0.00031909,30]
[329339840,1718258271405,-500.0,0.00031909,30]
[329339841,1718258271444,-500.0,0.00031909,30]
[329339842,1718258271510,-500.0,0.00031909,30]
[329339843,1718258271560,-644.16046114,0.00031909,30]
[329339844,1718258271601,-500.0,0.00031909,30]
[329339845,1718258271641,-500.0,0.00031909,30]
[329339846,1718258271678,-500.0,0.00031909,30]
[329339847,1718258271712,-503.34998388,0.00031909,30]
[329339848,1718258271752,-465.4155438,0.00031909,30]
[329339849,1718258271789,-500.0,0.00031909,30]
[329339850,1718258271829,-500.0,0.00031909,30]
[329339851,1718258271870,-500.0,0.00031909,30]
[329339852,1718258271912,-500.0,0.00031909,30]
[329339853,1718258271953,-500.0,0.00031909,30]
[329339854,1718258271995,-507.9871957,0.00031909,30]
[329339855,1718258272038,-500.0,0.00031909,30]
[329339856,1718258272078,-500.0,0.00031909,30]
[329339857,1718258272114,-176.89802332,0.00031909,30]
[329339858,1718258272150,-516.71699216,0.00031909,30]
[329339859,1718258272191,-500.0,0.00031909,30]
[329339860,1718258272227,-500.0,0.00031909,30]
[329339861,1718258272272,-500.0,0.00031909,30]
[329339862,1718258272315,-500.0,0.00031909,30]
[329339863,1718258272366,-500.0,0.00031909,30]
[329339864,1718258272524,-500.0,0.00031909,30]
[329339865,1718258272572,-500.0,0.00031909,30]
[329339866,1718258272615,-500.0,0.00031909,30]
[329339867,1718258272652,-500.0,0.00031909,30]
[329339868,1718258272693,-606.67046692,0.00031909,30]
[329339869,1718258272730,-500.0,0.00031909,30]
[329339870,1718258272768,-500.0,0.00031909,30]
[329339871,1718258272821,-500.0,0.00031909,30]
[329339872,1718258272873,-359.16953377,0.00031909,30]
[329339873,1718258272913,-296.61,0.00031909,30]
[329339874,1718258272958,-500.0,0.00031909,30]
[329339875,1718258273000,-500.0,0.00031909,30]
[329339876,1718258273040,-500.0,0.00031909,30]
[329339877,1718258273088,-500.0,0.00031909,30]
[329339878,1718258273125,-500.0,0.00031909,30]
[329339879,1718258273162,-511.11187391,0.00031909,30]
[329339880,1718258273225,-500.0,0.00031909,30]
[329339881,1718258273268,-500.0,0.00031909,30]
[329339882,1718258273314,-243.40405499,0.00031909,30]
[329339883,1718258273364,-500.0,0.00031909,30]
[329339884,1718258273414,-500.0,0.00031909,30]
[329339885,1718258273498,-2000.0,0.00031909,30]
[329339886,1718258273553,-500.0,0.00031909,30]
[329339887,1718258273593,-567.073741,0.00031909,30]
[329339888,1718258273630,-500.0,0.00031909,30]
[329339889,1718258273670,-2000.0,0.00031909,30]
[329339890,1718258273712,-164.38324858,0.00031909,30]
[329339891,1718258273749,-500.0,0.00031909,30]
[329339892,1718258273786,-1656.29098843,0.00031909,30]
[329339893,1718258273826,-500.0,0.00031909,30]
[329339894,1718258273868,-513.75824946,0.00031909,30]
[329339895,1718258273932,-500.0,0.00031909,30]
[329339896,1718258273979,-500.0,0.00031909,30]
[329339897,1718258274020,-513.99218024,0.00031909,30]
[329339898,1718258274076,-500.0,0.00031909,30]
[329339899,1718258274139,-500.0,0.00031909,30]
[329339900,1718258274178,-500.0,0.00031909,30]
[329339901,1718258274220,-500.0,0.00031909,30]
[329339902,1718258274256,-523.9549409,0.00031909,30]
[329339903,1718258274294,-500.0,0.00031909,30]
[329339904,1718258274337,-500.0,0.00031909,30]
[329339905,1718258274374,-500.0,0.00031909,30]
[329339906,1718258274426,-500.0,0.00031909,30]
[329339907,1718258274495,-500.0,0.00031909,30]
[329339908,1718258274544,-500.0,0.00031909,30]
[329339909,1718258274614,-353.56119388,0.00031909,30]
[329339910,1718258274675,-500.0,0.00031909,30]
[329339911,1718258274745,-500.0,0.00031909,30]
[329339912,1718258274790,-500.0,0.00031909,30]
[329339913,1718258274860,-531.40100629,0.00031909,30]
[329339914,1718258274919,-506.50897271,0.00031909,30]
[329339915,1718258274979,-500.0,0.00031909,30]
[329339916,1718258275030,-505.42061759,0.00031909,30]
[329339917,1718258275095,-500.0,0.00031909,30]
[329339918,1718258275156,-514.41161686,0.00031909,30]
[329339919,1718258275236,-500.0,0.00031909,30]
[329339920,1718258275288,-500.0,0.00031909,30]
[329339921,1718258275327,-583.50589216,0.00031909,30]
[329339922,1718258275369,-500.0,0.00031909,30]
[329339923,1718258275405,-500.0,0.00031909,30]
[329339924,1718258275442,-183.6414649,0.00031909,30]
[329339925,1718258275602,-500.0,0.00031909,30]
[329339926,1718258275649,-500.0,0.00031909,30]
[329339927,1718258275690,-500.0,0.00031909,30]
[329339928,1718258275738,-504.05849801,0.00031909,30]
[329339929,1718258275785,-522.60949022,0.00031909,30]
[329339930,1718258275824,-500.0,0.00031909,30]
[329339931,1718258275867,-500.0,0.00031909,30]
[329339932,1718258275905,-500.0,0.00031909,30]
[329339933,1718258275949,-500.0,0.00031909,30]
[329339934,1718258276003,-500.0,0.00031909,30]
[329339935,1718258276052,-511.82304562,0.00031909,30]
[329339936,1718258276104,-500.0,0.00031909,30]
[329339937,1718258276142,-517.10223228,0.00031909,30]
[329339938,1718258276182,-323.30526137,0.00031909,30]
[329339939,1718258276247,-502.624038,0.00031909,30]
[329339940,1718258276304,-500.0,0.00031909,30]
[329339941,1718258276361,-500.0,0.00031909,30]
[329339942,1718258276417,-500.0,0.00031909,30]
[329339943,1718258276458,-552.50913235,0.00031909,30]
[329339944,1718258276550,-500.0,0.00031909,30]
[329339945,1718258276638,-500.0,0.00031909,30]
[329339946,1718258276684,-364.11179511,0.00031909,30]
[329339947,1718258276733,-500.0,0.00031909,30]
[329339948,1718258276779,-500.0,0.00031909,30]
[329339949,1718258276830,-500.0,0.00031909,30]
[329339950,1718258276879,-500.0,0.00031909,30]
[329339951,1718258276924,-500.0,0.00031909,30]
[329339952,1718258276964,-500.0,0.00031909,30]
[329339953,1718258277008,-500.0,0.00031909,30]
[329339954,1718258277057,-500.0,0.00031909,30]
[329339955,1718258277109,-500.0,0.00031909,30]
[329339956,1718258277179,-512.72661173,0.00031909,30]
[329339957,1718258277227,-500.0,0.00031909,30]
[329339958,1718258277296,-500.0,0.00031909,30]
[329339959,1718258277352,-500.0,0.00031909,30]
[329339960,1718258277428,-500.0,0.00031909,30]
[329339961,1718258277492,-505.47296755,0.00031909,30]
[329339962,1718258277532,-500.0,0.00031909,30]
[329339963,1718258277583,-506.02231504,0.00031909,30]
[329339964,1718258277661,-500.0,0.00031909,30]
[329339965,1718258277719,-500.0,0.00031909,30]
[329339966,1718258277786,-280.0022803,0.00031909,30]
[329339967,1718258277836,-500.0,0.00031909,30]
[329339968,1718258277910,-500.0,0.00031909,30]
[329339969,1718258277998,-516.37421238,0.00031909,30]
[329339970,1718258278062,-500.0,0.00031909,30]
[329339971,1718258278106,-500.0,0.00031909,30]
[329339972,1718258278143,-500.0,0.00031909,30]
[329339973,1718258278194,-500.0,0.00031909,30]
[329339974,1718258278253,-500.0,0.00031909,30]
[329339975,1718258278294,-293.85906371,0.00031909,30]
[329339976,1718258278342,-500.0,0.00031909,30]
[329339977,1718258278386,-501.73022716,0.00031909,30]
[329339978,1718258278433,-500.0,0.00031909,30]
[329339979,1718258278481,-500.0,0.00031909,30]
[329339980,1718258278534,-502.70979209,0.00031909,30]
[329339981,1718258278573,-512.31650032,0.00031909,30]
[329339982,1718258278612,-292.07417434,0.00031909,30]
[329339983,1718258278652,-500.0,0.00031909,30]
[329339984,1718258278794,-500.0,0.00031909,30]
[329339985,1718258278854,-500.0,0.00031909,30]
[329339986,1718258278898,-500.0,0.00031909,30]
[329339987,1718258278946,-612.75846205,0.00031909,30]
[329339988,1718258278991,-502.83357878,0.00031909,30]
[329339989,1718258279032,-516.47623737,0.00031909,30]
[329339990,1718258279073,-500.0,0.00031909,30]
[329339991,1718258279117,-506.377017,0.00031909,30]
[329339992,1718258279185,-500.0,0.00031909,30]
[329339993,1718258279247,-500.0,0.00031909,30]
[329339994,1718258279355,-504.85734992,0.00031909,30]
[329339995,1718258279397,-500.0,0.00031909,30]
[329339996,1718258279445,-500.0,0.00031909,30]
[329339997,1718258279508,-519.29354457,0.00031909,30]
[329339998,1718258279560,-509.73790179,0.00031909,30]
[329339999,1718258279598,-500.0,0.00031909,30]
[329340000,1718258279637,-500.0,0.00031909,30]
[329340001,1718258279676,-383.4032195,0.00031909,30]
[329340002,1718258279714,-504.32643389,0.00031909,30]
[329340003,1718258279761,-500.0,0.00031909,30]
[329340004,1718258279842,-500.0,0.00031909,30]
[329340005,1718258279912,-500.0,0.00031909,30]
[329340006,1718258279954,-500.0,0.00031909,30]
[329340007,1718258280028,-500.0,0.00031909,30]
[329340008,1718258280108,-419.99452859,0.00031909,30]
[329340009,1718258280152,-575.87958339,0.00031909,30]
[329340010,1718258280213,-506.4153389,0.00031909,30]
[329340011,1718258280325,-500.0,0.00031909,30]
[329340012,1718258280381,-500.0,0.00031909,30]
[329340013,1718258280456,-505.494602,0.00031909,30]
[329340014,1718258280531,-500.0,0.00031909,30]
[329340015,1718258280568,-500.0,0.00031909,30]
[329340016,1718258280645,-500.0,0.00031909,30]
[329340017,1718258280718,-500.0,0.00031909,30]
[329340018,1718258280780,-526.37788228,0.00031909,30]
[329340019,1718258280830,-500.0,0.00031909,30]
[329340020,1718258280870,-520.04018474,0.00031909,30]
[329340021,1718258280934,-500.0,0.00031909,30]
[329340022,1718258280972,-500.0,0.00031909,30]
[329340023,1718258281015,-557.42968336,0.00031909,30]
[329340024,1718258281080,-500.0,0.00031909,30]
[329340025,1718258281148,-505.61355093,0.00031909,30]
[329340026,1718258281215,-500.0,0.00031909,30]
[329340027,1718258281260,-500.0,0.00031909,30]
[329340028,1718258281322,-500.0,0.00031909,30]
[329340029,1718258281384,-501.2485683,0.00031909,30]
[329340030,1718258281489,-512.17840457,0.00031909,30]
[329340031,1718258281622,-500.0,0.00031909,30]
[329340032,1718258281691,-505.22820566,0.00031909,30]
[329340033,1718258281766,-500.0,0.00031909,30]
[329340034,1718258281852,-500.0,0.00031909,30]
[329340035,1718258281931,-500.0,0.00031909,30]
[329340036,1718258282000,-517.49330306,0.00031909,30]
[329340037,1718258282074,-500.0,0.00031909,30]
[329340038,1718258282152,-500.0,0.00031909,30]
[329340039,1718258282226,-500.0,0.00031909,30]
[329340040,1718258282308,-500.0,0.00031909,30]
[329340041,1718258282490,-500.0,0.00031909,30]
[329340042,1718258282583,-500.0,0.00031909,30]
[329340043,1718258282662,-500.0,0.00031909,30]
[329340044,1718258282758,-500.0,0.00031909,30]
[329340045,1718258282903,-500.0,0.00031909,30]
[329340046,1718258283015,-554.04,0.00031909,30]
[329340047,1718258283108,-500.0,0.00031909,30]
[329340048,1718258283184,-500.0,0.00031909,30]
[329340049,1718258283282,-500.0,0.00031909,30]
[329340050,1718258283407,-554.04,0.00031909,30]
[329340051,1718258283491,-500.0,0.00031909,30]
[329340052,1718258283612,-500.0,0.00031909,30]
[329340053,1718258283667,-500.0,0.00031909,30]
[329340054,1718258283745,-554.04,0.00031909,30]
[329340055,1718258283801,-500.0,0.00031909,30]
[329340056,1718258283857,-259.82836794,0.00031909,30]
[329340057,1718258283919,-582.13272443,0.00031909,30]
[329340058,1718258283961,-500.0,0.00031909,30]
[329340059,1718258284001,-554.04,0.00031909,30]
[329340060,1718258284043,-154.96619232,0.00031909,30]
[329340061,1718258284109,-554.04,0.00031909,30]
[329340062,1718258284160,-503.33864212,0.00031909,30]
[329340063,1718258284200,-512.57894692,0.00031909,30]
[329340064,1718258284235,-554.04,0.00031909,30]
[329340065,1718258284310,-554.04,0.00031909,30]
[329340066,1718258284373,-554.04,0.00031909,30]
[329340067,1718258284420,-554.04,0.00031909,30]
[329340068,1718258284476,-554.04,0.00031909,30]
[329340069,1718258284523,-502.37024262,0.00031909,30]
[329340070,1718258284569,-500.0,0.00031909,30]
[329340071,1718258284608,-256.26040937,0.00031909,30]
[329340072,1718258284644,-524.15216497,0.00031909,30]
[329340073,1718258284676,-523.04419853,0.00031909,30]
[329340074,1718258284713,-554.04,0.00031909,30]
[329340075,1718258284752,-501.79763115,0.00031909,30]
[329340076,1718258284801,-554.04,0.00031909,30]
[329340077,1718258284855,-554.04,0.00031909,30]
[329340078,1718258284913,-554.04,0.00031909,30]
[329340079,1718258284952,-509.10777386,0.00031909,30]
[329340080,1718258284990,-500.73199408,0.00031909,30]
[329340081,1718258285032,-554.04,0.00031909,30]
[329340082,1718258285077,-500.0,0.00031909,30]
[329340083,1718258285122,-554.04,0.00031909,30]
[329340084,1718258285167,-500.0,0.00031909,30]
[329340085,1718258285204,-519.88914293,0.00031909,30]
[329340086,1718258285243,-554.04,0.00031909,30]
[329340087,1718258285285,-169.15522026,0.00031909,30]
[329340088,1718258285335,-554.04,0.00031909,30]
[329340089,1718258285374,-554.04,0.00031909,30]
[329340090,1718258285422,-1810.23,0.00031909,30]
[329340091,1718258285494,-1810.23,0.00031909,30]
[329340092,1718258285551,-554.04,0.00031909,30]
[329340093,1718258285611,-1810.23,0.00031909,30]
[329340094,1718258285660,-1810.23,0.00031909,30]
[329340095,1718258285716,-554.04,0.00031909,30]
[329340096,1718258285767,-554.04,0.00031909,30]
[329340097,1718258285936,-1810.23,0.00031909,30]
[329340098,1718258285984,-500.0,0.00031909,30]
[329340099,1718258286050,-512.89917912,0.00031909,30]
[329340100,1718258286096,-554.04,0.00031909,30]
[329340101,1718258286150,-1810.23,0.00031909,30]
[329340102,1718258286199,-500.0,0.00031909,30]
[329340103,1718258286249,-554.06903456,0.00031909,30]
[329340104,1718258286312,-1810.23,0.00031909,30]
[329340105,1718258286362,-219.96408788,0.00031909,30]
[329340106,1718258286412,-500.0,0.00031909,30]
[329340107,1718258286468,-1810.23,0.00031909,30]
[329340108,1718258286547,-500.0,0.00031909,30]
[329340109,1718258286623,-500.0,0.00031909,30]
[329340110,1718258286665,-1810.23,0.00031909,30]
[329340111,1718258286737,-1810.23,0.00031909,30]
[329340112,1718258286794,-1810.23,0.00031909,30]
[329340113,1718258286838,-500.0,0.00031909,30]
[329340114,1718258286895,-500.0,0.00031909,30]
[329340115,1718258286940,-1810.23,0.00031909,30]
[329340116,1718258287295,-500.0,0.00031909,30]
[329340117,1718258287347,-1161.12048424,0.00031909,30]
[329340118,1718258295028,-309.56000574,0.00028,30]
[329340119,1718258295094,-322.11546074,0.00029178,30]
[329340120,1718258295162,-322.11546074,0.00029288,30]
[329340121,1718258295203,-321.29,0.0002931,30]
[329340122,1718258295273,-322.11546074,0.00029425,30]
[329340123,1718258295318,-322.11546074,0.00029534,30]
[329340124,1718258295376,-322.11546074,0.00029671,30]
[329340125,1718258295421,-322.11546074,0.00029781,30]
[329340126,1718258295464,-322.11546074,0.00029918,30]
[329340127,1718258295526,-2883.49,0.00029999,30]
[329340128,1718258295574,-13939.72,0.00029999,30]
[329340129,1718258295619,-434.96890146,0.0003,30]
[329340130,1718258295664,-200.0,0.0003,90]
[329340131,1718258295706,-1800.0,0.0003,31]
[329340132,1718258295757,-597.5,0.0003,120]
[329340133,1718258295799,-500.0,0.0003,120]
[329340134,1718258295852,-322.11546074,0.00030027,30]
[329340135,1718258295913,-322.11546074,0.00030164,30]
[329340136,1718258295965,-300.0,0.00030177,120]
[329340137,1718258296009,-322.11546074,0.00030274,30]
[329340138,1718258296050,-200.0,0.00030377,120]
[329340139,1718258296102,-155.0,0.000304,30]
[329340140,1718258296144,-322.11546074,0.00030411,30]
[329340141,1718258296192,-200.0,0.00030499,120]
[329340142,1718258296275,-4006.50459,0.000305,30]
[329340143,1718258296340,-322.11546074,0.00030521,30]
[329340144,1718258296429,-1208.0,0.00030596,30]
[329340145,1718258296494,-322.11546074,0.00030658,30]
[329340146,1718258296536,-150.0,0.0003075,120]
[329340147,1718258296580,-200.0,0.00030755,120]
[329340148,1718258296636,-322.11546074,0.00030767,30]
[329340149,1718258296691,-322.11546074,0.00030904,30]
[329340150,1718258296750,-200.0,0.00030999,120]
[329340151,1718258296793,-1800.0,0.00031,30]
[329340152,1718258296836,-503.0,0.00031,30]
[329340153,1718258296877,-200.0,0.00031133,120]
[329340154,1718258296915,-565.71612495,0.000312,30]
[329340155,1718258296967,-334.399691,0.00031499,120]
[329340156,1718258297039,-200.0,0.00031511,120]
[329340157,1718258297096,-468.44802,0.000316,120]
[329340158,1718258297146,-1458.9,0.0003182,30]
[329340159,1718258297187,-153.58,0.00031821,30]
[329340160,1718258297239,-400.0,0.00031838,30]
[329340161,1718258297348,-500.0,0.00031838,30]
[329340162,1718258297409,-500.0,0.00031838,30]
[329340163,1718258297479,-500.0,0.00031838,30]
[329340164,1718258297526,-500.0,0.00031838,30]
[329340165,1718258297576,-500.0,0.00031838,30]
[329340166,1718258297620,-172.80511778,0.00031838,30]
[329340167,1718258297687,-218.21,0.0003184,120]
[329340168,1718258297887,-200.0,0.00031889,120]
[329340169,1718258297925,-1401.59777208,0.00032,60]
[329340170,1718258297994,-1800.0,0.00032,33]
[329340171,1718258298051,-250.0,0.00032,30]
[329340172,1718258298092,-300.0,0.00032063,120]
[329340173,1718258298135,-200.0,0.00032267,120]
[329340174,1718258298192,-256.31602155,0.00032393,40]
[329340175,1718258298245,-1758.63377596,0.000325,120]
[329340176,1718258298450,-267.802209,0.00032645,120]
[329340177,1718258298536,-2000.0,0.00032876,30]
[329340178,1718258298633,-2000.0,0.00032876,30]
[329340179,1718258298677,-2000.0,0.00032876,30]
[329340180,1718258298723,-2000.0,0.00032876,30]
[329340181,1718258298800,-2000.0,0.00032876,30]
[329340182,1718258298847,-2000.0,0.00032876,30]